bitfinex-derivatives/quotes_ETHF0:USTF0_20250116
["timestamp","ask_amount","ask_price","bid_price","bid_amount"]
[1737023621388,1.08014,3339.8,3339.5,0.59898]
[1737023621584,0.4812,3339.8,3339.7,0.59895]
[1737023623979,0.4812,3339.8,3339.4,3.18351]
[1737023623980,3.2078,3340.2,3339.5,1.49748]
[1737023624179,3.80668,3340.2,3340.1,0.59888]
[1737023624379,3.2078,3340.2,3340.1,0.59888]
[1737023624578,3.80666,3340.2,3340.1,0.59888]
[1737023624789,3.2078,3340.2,3340.1,0.59888]
[1737023625084,3.80666,3340.2,3340.1,0.59888]
[1737023625479,3.80668,3340.2,3340.1,0.59888]
[1737023626277,0.458,3340.3,3340.2,0.59886]
[1737023626987,1.06821,3340.5,3340.2,1.199]
[1737023627192,1.06821,3340.5,3340.4,0.59883]
[1737023627782,0.59879,3340.7,3340.5,0.59881]
[1737023628083,0.59879,3340.7,3340.6,0.59879]
[1737023628988,1.07817,3340.8,3340.7,0.59877]
[1737023629180,0.59879,3340.7,3340.6,0.59878]
[1737023629391,0.59878,3340.7,3340.6,0.59878]
[1737023630285,3.2078,3341.0,3340.4,2.38746018]
[1737023630487,3.2078,3341.0,3340.9,0.59874]
[1737023630676,3.2078,3341.0,3340.7,2.38746018]
[1737023630876,3.2078,3341.0,3340.6,0.59878]
[1737023631081,3.2078,3341.0,3340.7,1.198]
[1737023631389,0.59882,3340.5,3340.3,0.59883]
[1737023631583,0.59882,3340.5,3340.4,1.198]
[1737023632181,0.4697,3340.8,3340.4,1.198]
[1737023632377,0.59881,3340.5,3340.4,1.198]
[1737023633987,0.4488,3340.7,3340.1,2.87136018]
[1737023634217,0.59886,3340.3,3340.2,1.198]
[1737023635088,0.59886,3340.2,3340.1,3.47022018]
[1737023635694,0.59886,3340.2,3340.1,2.87136018]
[1737023635894,0.59886,3340.2,3340.1,2.38746018]
[1737023636193,1.07316,3340.2,3340.1,2.38746018]
[1737023637200,1.07316,3340.2,3340.1,2.98634018]
[1737023637401,1.07316,3340.2,3340.1,2.38746018]
[1737023638497,1.07316,3340.2,3340.1,2.98634018]
[1737023638796,1.07316,3340.2,3340.1,2.38746018]
[1737023641496,1.51966,3340.2,3340.1,2.38746018]
[1737023641793,0.5989,3340.0,3339.9,1.198]
[1737023641995,0.9208,3340.2,3339.8,2.38746018]
[1737023642301,0.9208,3340.2,3339.8,3.58546018]
[1737023642302,1.05642,3339.9,3339.8,3.58546018]
[1737023643092,0.4575,3339.9,3339.6,0.4685]
[1737023643401,0.59895,3339.7,3339.6,1.79697]
[1737023643896,0.59895,3339.7,3339.5,2.38746018]
[1737023643897,0.4575,3339.9,3339.5,2.98644018]
[1737023644106,0.59897,3339.6,3339.5,4.18444018]
[1737023645814,0.59897,3339.6,3339.5,2.98644018]
[1737023647611,0.59896,3339.7,3339.6,0.59895]
[1737023647907,0.59896,3339.7,3339.6,2.98641018]
[1737023650211,0.59896,3339.7,3339.6,2.38746018]
[1737023650503,0.59896,3339.7,3339.6,2.98643018]
[1737023651300,0.59896,3339.7,3339.6,2.38746018]
[1737023652808,0.59896,3339.7,3339.6,2.98643018]
[1737023653211,0.59896,3339.7,3339.6,2.38746018]
[1737023653815,0.4575,3339.9,3339.5,3.2078]
[1737023654115,1.06297,3339.6,3339.5,3.2078]
[1737023656217,0.59901,3339.4,3339.3,4.64318018]
[1737023661514,1.95484,3339.9,3339.3,4.04416018]
[1737023661717,0.59895,3339.8,3339.7,0.59893]
[1737023661922,3.80671,3340.0,3339.9,0.59892]
[1737023662315,3.2078,3340.0,3339.9,0.59892]
[1737023663619,3.8067,3340.0,3339.9,0.59892]
[1737023663915,3.2078,3340.0,3339.9,0.59892]
[1737023666119,3.2078,3340.3,3339.7,2.38746018]
[1737023666318,0.59889,3340.1,3340.0,0.59887]
[1737023666516,0.59889,3340.1,3340.0,1.79687]
[1737023667615,0.59889,3340.1,3340.0,4.18433018]
[1737023669317,0.59889,3340.1,3340.0,3.58546018]
[1737023670022,0.59889,3340.1,3340.0,4.18436018]
[1737023670411,0.59895,3339.8,3339.7,4.18441018]
[1737023670616,0.59895,3339.8,3339.7,3.58546018]
[1737023670818,0.59895,3339.8,3339.7,4.18441018]
[1737023671050,0.59893,3339.9,3339.8,0.59892]
[1737023671317,0.5989,3340.1,3340.0,0.59888]
[1737023671720,6.43735374,3340.2,3340.1,0.59888]
[1737023672530,0.59887,3340.2,3340.1,0.59888]
[1737023678727,5.83848374,3340.3,3340.0,2.38746018]
[1737023678927,2.99432,3340.2,3339.9,1.198]
[1737023679231,0.5989,3340.0,3339.9,1.198]
[1737023679926,5.83848374,3340.0,3339.7,2.98640018]
[1737023680126,0.59893,3339.8,3339.7,4.18440018]
[1737023680833,1.06783,3339.8,3339.7,4.18440018]
[1737023681133,1.06783,3339.8,3339.7,2.38746018]
[1737023681335,1.06783,3339.8,3339.7,2.98641018]
[1737023681530,0.59892,3340.0,3339.9,0.5989]
[1737023682633,0.59893,3339.9,3339.8,0.59892]
[1737023684330,5.16498,3340.2,3339.7,2.38746018]
[1737023684634,0.59893,3339.8,3339.7,2.38746018]
[1737023685432,0.59893,3339.8,3339.7,2.98641018]
[1737023692837,6.43737374,3340.1,3340.0,0.5989]
[1737023693632,0.59889,3340.1,3340.0,0.5989]
[1737023695136,5.83848374,3340.2,3340.0,2.38746018]
[1737023695336,5.83848374,3340.2,3340.1,0.59888]
[1737023695637,5.83848374,3340.2,3340.1,1.08228]
[1737023696239,1.09185,3340.3,3340.2,0.59886]
[1737023697136,0.493,3340.3,3340.2,0.59886]
[1737023697641,4.159,3340.4,3340.1,0.4834]
[1737023697939,0.4689,3340.4,3340.3,2.98630018]
[1737023698142,0.4689,3340.4,3340.3,4.18330018]
[1737023698534,5.83848374,3340.5,3340.4,0.59883]
[1737023699843,0.59878,3340.7,3340.6,0.59879]
[1737023700236,3.80657,3340.8,3340.7,0.59877]
[1737023701235,3.2078,3340.8,3340.7,0.59877]
[1737023701444,3.2078,3340.8,3340.7,1.05947]
[1737023701938,3.80655,3340.8,3340.7,1.05947]
[1737023702142,3.2078,3340.8,3340.7,1.05947]
[1737023704731,3.80655,3340.8,3340.7,1.05947]
[1737023706143,0.59875,3340.8,3340.7,1.05947]
[1737023709036,0.59875,3340.8,3340.7,0.59877]
[1737023710145,0.59877,3340.7,3340.6,2.98623018]
[1737023710947,0.59877,3340.7,3340.6,2.38746018]
[1737023711142,0.59877,3340.7,3340.6,2.98625018]
[1737023711740,0.59877,3340.7,3340.6,2.38746018]
[1737023712140,0.59877,3340.7,3340.6,2.98625018]
[1737023713345,0.59877,3340.7,3340.6,2.38746018]
[1737023713545,4.1183,3341.0,3340.3,3.58446018]
[1737023713746,0.59883,3340.4,3340.3,4.18330018]
[1737023714140,0.59883,3340.4,3340.3,2.98630018]
[1737023714547,1.05863,3340.4,3340.3,2.98630018]
[1737023714950,0.4598,3340.4,3340.3,2.98630018]
[1737023715251,1.05863,3340.4,3340.3,2.98630018]
[1737023717549,1.05863,3340.4,3340.3,2.38746018]
[1737023717752,1.05863,3340.4,3340.3,2.98630018]
[1737023718949,5.88083793,3340.7,3340.3,2.38746018]
[1737023719255,6.47962793,3340.7,3340.6,0.59879]
[1737023719454,6.47962793,3340.7,3340.6,1.6746338]
[1737023720063,6.47962793,3340.7,3340.6,1.0758438]
[1737023720447,0.59879,3340.7,3340.6,1.0758438]
[1737023721049,0.59879,3340.7,3340.4,1.0758438]
[1737023721250,3.80661,3340.5,3340.4,1.0758438]
[1737023721549,3.80661,3340.5,3340.4,1.6746738]
[1737023725558,0.59881,3340.5,3340.4,1.6746738]
[1737023729663,5.88082854,3340.7,3340.4,1.0758438]
[1737023729862,0.5988,3340.6,3340.5,0.59879]
[1737023730564,0.59878,3340.8,3340.7,0.59875]
[1737023732568,4.1761,3340.9,3340.8,0.59875]
[1737023732769,3.6857,3340.9,3340.8,0.59875]
[1737023732975,3.6857,3340.9,3340.8,1.07695]
[1737023733862,4.28444,3340.9,3340.8,1.07695]
[1737023735570,3.80654,3340.9,3340.8,1.07695]
[1737023735767,3.2078,3340.9,3340.8,1.07695]
[1737023736167,3.80654,3340.9,3340.8,1.07695]
[1737023736367,3.2078,3340.9,3340.8,1.07695]
[1737023736961,0.59867,3341.3,3341.2,0.59868]
[1737023737164,0.4676,3341.4,3341.3,0.4626]
[1737023737470,0.59866,3341.4,3341.3,3.44390753]
[1737023742374,0.4659,3341.7,3341.3,2.84524753]
[1737023742573,0.59862,3341.6,3341.5,0.59861]
[1737023742769,1.06451,3341.7,3341.6,0.59861]
[1737023743476,0.59863,3341.6,3341.5,0.59861]
[1737023746178,0.59863,3341.6,3341.5,1.05321]
[1737023747275,0.59861,3341.7,3341.6,0.59859]
[1737023747483,0.4743,3342.1,3341.6,0.59859]
[1737023747484,0.4743,3342.1,3341.6,2.38264753]
[1737023747675,0.4743,3342.1,3342.0,0.59854]
[1737023747989,0.59852,3342.2,3342.1,0.59851]
[1737023748176,10.72527039,3342.3,3342.1,1.6778]
[1737023748372,11.32376039,3342.3,3342.2,0.5985]
[1737023748572,3.6608,3342.3,3342.1,2.1268]
[1737023748774,0.5985,3342.2,3342.1,2.72531]
[1737023753382,0.5985,3342.2,3342.1,2.1268]
[1737023753578,0.5985,3342.2,3342.1,2.72532]
[1737023753783,0.5985,3342.2,3342.1,2.24352]
[1737023757388,0.5985,3342.2,3342.1,3.31830582]
[1737023758086,0.5985,3342.2,3342.1,2.24352]
[1737023758287,0.5985,3342.2,3342.1,3.31830582]
[1737023759895,0.5985,3342.2,3342.1,2.24352]
[1737023760194,0.5985,3342.2,3342.1,2.86930582]
[1737023763795,0.59861,3341.7,3341.5,3.2078]
[1737023763996,0.59861,3341.6,3341.5,4.28258582]
[1737023764198,1.07531,3341.6,3341.5,1.07478582]
[1737023764413,0.59863,3341.5,3341.4,1.07478582]
[1737023764627,1.08243,3341.5,3341.4,1.07478582]
[1737023764797,1.08243,3341.5,3341.3,1.07478582]
[1737023764798,0.59865,3341.4,3341.3,1.07478582]
[1737023764998,1.98039,3341.5,3341.2,1.07478582]
[1737023765298,3.80646,3341.3,3341.2,1.07478582]
[1737023765600,0.5987,3341.1,3341.0,2.26978582]
[1737023766300,0.5987,3341.1,3341.0,1.07478582]
[1737023767495,1.4968,3341.1,3340.8,2.38339477]
[1737023767796,3.80654,3340.9,3340.8,2.38339477]
[1737023768193,3.80654,3340.9,3340.8,2.98214477]
[1737023769203,3.80654,3340.9,3340.8,2.38339477]
[1737023769403,4.28034,3340.9,3340.8,2.38339477]
[1737023769605,4.75884,3340.9,3340.8,2.38339477]
[1737023775311,0.59877,3340.7,3340.6,1.79478]
[1737023776609,0.59877,3340.8,3340.7,0.59876]
[1737023777809,0.59877,3340.7,3340.6,2.98217477]
[1737023780310,0.59877,3340.7,3340.6,0.59878]
[1737023780715,0.59877,3340.7,3340.6,2.98217477]
[1737023782416,0.59876,3340.8,3340.7,0.59875]
[1737023783909,3.6816,3340.9,3340.6,2.38339477]
[1737023784109,4.28035,3340.9,3340.8,0.59875]
[1737023785008,0.59877,3340.7,3340.6,2.98216477]
[1737023786417,0.59876,3340.8,3340.7,0.59875]
[1737023787713,0.4738,3340.9,3340.6,2.38339477]
[1737023788018,1.07255,3340.9,3340.8,0.59875]
[1737023789308,1.07255,3340.9,3340.8,1.67442843]
[1737023790121,1.07255,3340.9,3340.8,0.59875]
[1737023790320,1.07255,3340.9,3340.8,1.67442843]
[1737023792217,1.07255,3340.9,3340.8,0.59875]
[1737023792422,1.07255,3340.9,3340.8,1.67442843]
[1737023792915,3.2078,3341.2,3341.1,0.5987]
[1737023793125,3.2078,3341.2,3341.1,1.67437843]
[1737023794924,1.51164,3341.5,3341.4,0.59865]
[1737023795227,1.51164,3341.5,3341.4,1.67432843]
[1737023796427,3.2078,3341.8,3341.6,0.59859]
[1737023796627,3.2078,3341.8,3341.7,1.04829]
[1737023796830,3.80638,3341.8,3341.7,1.04829]
[1737023797023,3.2078,3342.2,3341.7,0.4497]
[1737023797223,3.80632,3342.2,3342.1,0.5985]
[1737023800522,3.2078,3342.2,3341.9,1.195]
[1737023800716,0.59854,3342.1,3342.0,0.59853]
[1737023800921,3.2078,3342.2,3341.9,1.195]
[1737023801121,0.59854,3342.0,3341.9,1.79355]
[1737023804423,0.59854,3342.0,3341.9,1.195]
[1737023804828,0.59859,3341.7,3341.6,3.8064]
[1737023807639,2.92755,3342.3,3341.6,3.2078]
[1737023807838,0.59858,3341.9,3341.8,0.59856]
[1737023808937,2.92755,3342.3,3341.7,2.38205341]
[1737023809136,0.59858,3341.8,3341.7,2.98063341]
[1737023811537,0.59858,3341.8,3341.7,2.38205341]
[1737023811743,0.59859,3341.7,3341.6,3.8064]
[1737023811942,1.53639,3341.7,3341.6,3.2078]
[1737023813041,1.53639,3341.7,3341.6,3.80641]
[1737023814736,1.05199,3341.7,3341.6,0.59861]
[1737023816143,0.59859,3341.8,3341.7,0.59858]
[1737023816837,1.94512,3341.9,3341.4,2.86195341]
[1737023817045,0.59863,3341.6,3341.5,0.59861]
[1737023817546,1.08233,3341.6,3341.5,0.59861]
[1737023820844,0.5986,3341.8,3341.7,0.59858]
[1737023821051,0.4487,3341.9,3341.4,2.86195341]
[1737023821253,0.59863,3341.6,3341.5,0.59863]
[1737023821447,0.59863,3341.6,3341.5,0.59861]
[1737023821844,0.59863,3341.5,3341.4,3.46059341]
[1737023822447,0.9649,3341.8,3341.6,0.59859]
[1737023822448,0.59862,3341.7,3341.6,0.59859]
[1737023822848,1.5635,3341.8,3341.7,0.59859]
[1737023823443,1.5635,3341.8,3341.7,1.67369387]
[1737023823852,1.5635,3341.8,3341.7,1.07510387]
[1737023824049,0.59863,3341.6,3341.5,0.59863]
[1737023824249,1.49649,3341.7,3341.4,0.4799]
[1737023824447,0.59861,3341.6,3341.5,1.07510387]
[1737023825339,0.59863,3341.5,3341.4,1.07854]
[1737023825545,0.59863,3341.5,3341.4,0.4799]
[1737023825746,0.59865,3341.4,3341.3,1.79266]
[1737023825941,1.04765,3341.4,3341.3,1.194]
[1737023827047,1.04765,3341.4,3341.3,1.79266]
[1737023827543,7.06447039,3342.3,3341.3,1.194]
[1737023827859,7.06447039,3342.3,3342.2,6.1890198]
[1737023828049,7.06447039,3342.3,3342.2,7.3830198]
[1737023828752,0.9061,3342.8,3342.2,7.3830198]
[1737023828753,0.9061,3342.8,3342.7,0.59841]
[1737023829150,10.72887039,3343.2,3342.6,2.3827198]
[1737023829350,11.68567039,3343.2,3342.9,0.59837]
[1737023829549,0.59837,3343.0,3342.9,0.59837]
[1737023829748,4.6212,3343.2,3342.7,0.9714]
[1737023829948,0.59839,3342.9,3342.8,0.59838]
[1737023831753,0.5984,3342.8,3342.7,1.5698]
[1737023841162,3.2078,3343.4,3342.7,0.9714]
[1737023841360,0.59834,3343.2,3343.1,0.59831]
[1737023843260,0.59834,3343.2,3343.1,2.9810298]
[1737023845467,0.59832,3343.3,3343.2,0.5983]
[1737023846069,0.59832,3343.3,3343.2,1.0498]
[1737023848670,2.42151,3343.9,3343.2,0.4515]
[1737023848968,0.59831,3343.3,3343.2,1.04981]
[1737023849868,0.59831,3343.3,3343.2,1.04982]
[1737023850771,0.5983,3343.4,3343.3,0.59829]
[1737023851066,0.5983,3343.4,3343.3,1.07599]
[1737023855266,0.5983,3343.4,3343.3,0.4777]
[1737023855571,0.59831,3343.3,3343.2,0.59832]
[1737023855772,0.59832,3343.2,3343.1,2.9810498]
[1737023862077,4.70342,3343.7,3343.1,2.9810498]
[1737023862078,3.2078,3343.7,3343.1,2.3827198]
[1737023862373,3.80605,3343.7,3343.6,2.9809698]
[1737023862569,3.2078,3343.7,3343.3,2.3827198]
[1737023862872,0.59829,3343.5,3343.4,1.193]
[1737023863071,0.59829,3343.5,3343.4,1.79129]
[1737023863278,1.04689,3343.5,3343.4,1.79129]
[1737023864966,0.4486,3343.5,3343.4,1.79129]
[1737023865377,1.53446,3343.6,3343.5,0.59827]
[1737023865874,0.9362,3343.6,3343.5,0.59827]
[1737023866187,0.9362,3343.6,3343.5,1.06377]
[1737023868481,1.53445,3343.6,3343.5,1.06377]
[1737023868682,0.9362,3343.6,3343.3,2.3827198]
[1737023868881,0.59829,3343.4,3343.3,2.9809998]
[1737023869680,0.9362,3343.6,3343.3,2.9809998]
[1737023869681,0.59828,3343.5,3343.4,0.59827]
[1737023869875,1.53447,3343.6,3343.5,0.59827]
[1737023870384,0.9362,3343.6,3343.5,0.59827]
[1737023871383,0.9362,3343.6,3343.5,1.67210744]
[1737023871575,1.53445,3343.6,3343.5,1.07383744]
[1737023872878,1.53445,3343.6,3343.5,1.67210744]
[1737023873481,0.5983,3343.4,3343.3,0.59828]
[1737023876383,0.59828,3343.5,3343.4,0.59827]
[1737023880396,0.59828,3343.5,3343.4,1.79127]
[1737023887094,3.2078,3343.8,3343.4,1.193]
[1737023887301,3.80603,3343.8,3343.7,0.59822]
[1737023887596,11.35279039,3343.8,3343.6,2.37984228]
[1737023887800,0.59823,3343.7,3343.6,2.97808228]
[1737023887995,0.59823,3343.7,3343.6,0.59824]
[1737023888598,10.75457039,3343.8,3343.5,0.4895]
[1737023888797,0.59825,3343.6,3343.5,1.08775]
[1737023889195,0.59825,3343.6,3343.5,0.4895]
[1737023889503,0.59825,3343.6,3343.5,1.193]
[1737023889902,3.6901,3343.8,3343.2,0.4638]
[1737023890102,0.59831,3343.3,3343.2,1.06211]
[1737023890305,0.59831,3343.3,3343.2,1.79132]
[1737023890600,0.59831,3343.3,3343.2,1.193]
[1737023890996,1.07411,3343.3,3343.2,1.193]
[1737023891605,1.07411,3343.3,3343.2,1.79132]
[1737023891994,0.4758,3343.3,3343.2,1.79132]
[1737023892301,1.07411,3343.3,3343.2,1.79132]
[1737023893507,1.07411,3343.3,3343.2,2.86541767]
[1737023893695,1.07411,3343.3,3343.2,1.193]
[1737023893899,1.07411,3343.3,3343.2,2.26709767]
[1737023895204,1.07671795,3343.3,3343.2,2.26709767]
[1737023897399,1.07671795,3343.3,3343.2,1.07409767]
[1737023899210,1.07671795,3343.3,3343.2,1.67241767]
[1737023900610,1.07671795,3343.3,3343.2,1.07409767]
[1737023900907,0.59832,3343.2,3343.1,2.86542767]
[1737023907926,0.59832,3343.2,3343.1,2.26709767]
[1737023908121,0.59832,3343.2,3343.1,1.07409767]
[1737023908330,0.59841,3342.8,3342.7,1.7904]
[1737023908520,0.59841,3342.8,3342.7,2.86449767]
[1737023908827,0.59841,3342.8,3342.7,2.26609767]
[1737023909027,0.59841,3342.8,3342.7,2.86450767]
[1737023909223,1.07409767,3342.8,3342.6,4.66163413]
[1737023909420,4.27791,3342.7,3342.6,4.66163413]
[1737023910120,0.59845,3342.5,3342.4,1.07409767]
[1737023911622,6.48062774,3342.5,3342.4,1.07409767]
[1737023912728,0.59845,3342.5,3342.4,1.07409767]
[1737023913929,0.59839,3342.9,3342.8,0.59838]
[1737023914430,0.59839,3342.9,3342.8,1.67247767]
[1737023915331,0.59839,3342.9,3342.8,0.59838]
[1737023920134,0.5984,3342.8,3342.7,1.07191]
[1737023921230,0.5984,3342.8,3342.7,0.4735]
[1737023921436,0.5984,3342.8,3342.7,1.6655]
[1737023922533,0.5984,3342.8,3342.7,2.26391]
[1737023924429,0.5984,3342.8,3342.7,1.07191]
[1737023927434,0.5984,3342.8,3342.7,0.4735]
[1737023927638,0.5984,3342.8,3342.7,1.07191]
[1737023928836,2.38064265,3342.9,3342.2,0.59849]
[1737023929136,0.59853,3342.2,3342.1,0.4473]
[1737023930337,0.59853,3342.2,3342.1,1.04582]
[1737023930540,0.59853,3342.2,3342.1,0.4473]
[1737023930738,0.59853,3342.2,3342.1,1.04582]
[1737023932730,0.5985,3342.3,3342.2,0.59849]
[1737023932944,0.9385,3342.4,3342.1,1.6393]
[1737023933143,0.5985,3342.2,3342.1,2.23781]
[1737023934539,0.5985,3342.2,3342.1,2.23782]
[1737023935334,0.59849,3342.3,3342.2,0.59848]
[1737023935738,0.4486,3342.4,3342.2,2.38064265]
[1737023935936,3.6547,3342.9,3342.2,2.38064265]
[1737023936136,0.59843,3342.7,3342.6,0.59842]
[1737023936339,0.59841,3342.8,3342.7,0.59841]
[1737023937037,3.2078,3342.9,3342.6,0.9393]
[1737023937240,3.8062,3342.9,3342.8,0.5984]
[1737023937439,3.8062,3342.9,3342.8,1.67278902]
[1737023937940,3.2078,3342.9,3342.8,1.67278902]
[1737023938543,0.00260795,3343.3,3342.8,3.34077804]
[1737023938845,0.00260795,3343.3,3343.2,1.67270902]
[1737023939342,0.00260795,3343.3,3343.2,2.97818244]
[1737023942849,0.60091795,3343.3,3343.2,2.97818244]
[1737023947451,1.09081795,3343.3,3343.2,2.97818244]
[1737023947650,1.09081795,3343.3,3343.2,2.37986244]
[1737023947845,1.09081795,3343.3,3342.5,8.10510396]
[1737023947846,0.49250795,3343.3,3342.6,3.31916244]
[1737023948151,0.60091795,3343.3,3343.2,2.97818244]
[1737023950554,0.60091795,3343.3,3342.9,1.49593]
[1737023950555,0.59839,3343.0,3342.9,2.37986244]
[1737023951346,0.59839,3343.0,3342.9,4.17024244]
[1737023951555,0.59839,3343.0,3342.9,3.57186244]
[1737023951753,0.59839,3343.0,3342.9,1.192]
[1737023951958,0.59839,3343.0,3342.6,2.37986244]
[1737023952156,0.59841,3342.7,3342.6,3.57186244]
[1737023954553,0.59841,3342.7,3342.6,2.37986244]
[1737023956351,0.59845,3342.5,3342.4,1.6822]
[1737023956749,0.59845,3342.5,3342.4,1.192]
[1737023956953,1.06025,3342.5,3342.4,1.192]
[1737023957152,0.59845,3342.5,3342.4,1.192]
[1737023957353,0.59845,3342.5,3342.4,1.79047]
[1737023959559,0.59845,3342.5,3342.4,3.57186244]
[1737023959762,1.05045,3342.5,3342.4,3.57186244]
[1737023960651,1.05045,3342.5,3342.4,4.17033244]
[1737023960857,0.5985,3342.2,3342.1,2.37986244]
[1737023961159,0.5985,3342.2,3342.1,3.57186244]
[1737023961362,0.5985,3342.2,3342.1,4.17038244]
[1737023965461,0.59846,3342.5,3342.4,0.59845]
[1737023965762,0.59846,3342.5,3342.4,2.97831244]
[1737023966856,0.59846,3342.5,3342.4,2.97833244]
[1737023967653,0.59846,3342.5,3342.1,4.04986244]
[1737023967859,0.5985,3342.3,3342.2,0.59849]
[1737023969666,0.9295,3342.4,3342.1,3.57186244]
[1737023969868,0.5985,3342.2,3342.1,4.17037244]
[1737023971669,0.60063588,3342.5,3342.4,0.59847]
[1737023971966,0.60063588,3342.5,3342.4,2.97833244]
[1737023973365,0.60062588,3342.5,3342.4,2.97833244]
[1737023973969,0.00217588,3342.5,3342.4,2.97833244]
[1737023974372,3.2078,3343.1,3343.0,0.59836]
[1737023974567,3.2078,3343.1,3343.0,1.79036]
[1737023975074,3.2078,3343.1,3343.0,3.25396]
[1737023976775,3.80614,3343.1,3343.0,2.77306]
[1737023976973,3.80614,3343.1,3343.0,1.682]
[1737023980967,3.80614,3343.1,3343.0,1.192]
[1737023981172,3.80614,3343.1,3343.0,1.79036]
[1737023983380,3.80614,3343.1,3343.0,1.192]
[1737023983673,3.80614,3343.1,3343.0,1.79036]
[1737023986083,0.59834,3343.1,3343.0,1.79036]
[1737023987274,3.2078,3343.3,3343.0,1.192]
[1737023987481,3.80611,3343.3,3343.2,0.59832]
[1737023987882,3.2078,3343.3,3343.2,0.59832]
[1737023988088,3.80611,3343.3,3343.2,0.59832]
[1737023992483,3.2078,3343.3,3343.2,0.59832]
[1737023992684,3.80611,3343.3,3343.2,0.59832]
[1737023993382,0.59831,3343.3,3343.2,0.59832]
[1737024001891,3.8061,3343.4,3343.3,0.59831]
[1737024005890,3.8061,3343.4,3343.3,1.06931]
[1737024006192,3.2078,3343.4,3343.3,1.06931]
[1737024006387,3.2078,3343.4,3343.3,1.51831]
[1737024006691,0.59825,3343.7,3343.6,0.59823]
[1737024007489,3.6976,3343.8,3343.5,2.37986244]
[1737024007690,4.29584,3343.8,3343.7,0.59823]
[1737024009293,4.29584,3343.8,3343.6,0.59823]
[1737024009294,0.59825,3343.7,3343.6,0.59823]
[1737024014096,0.59825,3343.6,3343.5,2.97812244]
[1737024016697,0.59824,3343.7,3343.6,0.59823]
[1737024016897,0.59824,3343.7,3343.6,1.78923]
[1737024017296,0.59824,3343.7,3343.6,2.86307254]
[1737024022097,0.59824,3343.7,3343.6,1.78923]
[1737024022303,0.59824,3343.7,3343.6,2.86307254]
[1737024023899,3.6976,3343.8,3343.3,0.471]
[1737024024099,5.19316,3343.8,3343.5,1.07384254]
[1737024024306,0.59834,3343.1,3343.0,0.82591202]
[1737024024602,0.59834,3343.1,3343.0,3.08975456]
[1737024025106,0.59834,3343.1,3343.0,2.26384254]
[1737024026101,0.59834,3343.1,3343.0,2.86220254]
[1737024027601,0.59834,3343.1,3343.0,1.67220254]
[1737024027805,0.59834,3343.1,3343.0,2.86320254]
[1737024028509,0.59834,3343.1,3343.0,2.26484254]
[1737024029002,0.59834,3343.1,3343.0,2.86320254]
[1737024030210,0.59834,3343.1,3343.0,2.26484254]
[1737024030605,1.3935,3343.3,3342.7,3.2078]
[1737024030606,0.59839,3342.8,3342.7,4.3988]
[1737024030906,0.59839,3342.8,3342.7,5.47264254]
[1737024031807,1.52089,3342.8,3342.7,5.47264254]
[1737024032015,1.52089,3342.8,3342.7,6.07105254]
[1737024032205,1.52089,3342.8,3342.4,5.15133413]
[1737024032206,0.59845,3342.5,3342.4,5.15133413]
[1737024032512,0.59845,3342.5,3342.4,1.07384254]
[1737024032903,1.08425,3342.5,3342.4,1.07384254]
[1737024033308,0.4858,3342.5,3342.3,1.191]
[1737024033511,0.59847,3342.4,3342.3,1.191]
[1737024034108,0.4858,3342.5,3342.1,0.59851]
[1737024034307,0.5985,3342.2,3342.1,1.191]
[1737024034518,0.5985,3342.2,3342.1,1.78952]
[1737024034714,0.5985,3342.2,3342.1,2.86336254]
[1737024035314,0.5985,3342.2,3342.1,3.57245833]
[1737024036008,0.5985,3342.2,3342.1,4.17097833]
[1737024037611,0.4858,3342.5,3342.1,3.57245833]
[1737024037817,0.5985,3342.3,3342.2,0.59849]
[1737024038718,0.5985,3342.2,3342.1,4.17096833]
[1737024045519,0.5985,3342.2,3342.1,1.191]
[1737024045709,0.5985,3342.2,3342.0,1.06922]
[1737024045710,0.59852,3342.1,3342.0,0.4707]
[1737024045909,0.59852,3342.1,3341.6,3.27898393]
[1737024045910,0.59859,3341.7,3341.6,3.27898393]
[1737024046120,0.59859,3341.7,3341.6,4.92398393]
[1737024046515,0.59859,3341.7,3341.6,5.52259393]
[1737024047723,0.59859,3341.7,3341.6,4.92398393]
[1737024048118,0.59859,3341.7,3341.6,5.52259393]
[1737024050324,0.59859,3341.7,3341.6,4.92398393]
[1737024051917,0.59859,3341.7,3341.6,5.52259393]
[1737024053616,0.59859,3341.7,3341.6,4.92398393]
[1737024053817,0.59859,3341.7,3341.6,5.52259393]
[1737024054423,0.59859,3341.7,3341.6,4.33159393]
[1737024054624,0.59859,3341.7,3341.6,4.92398393]
[1737024055126,3.2078,3341.9,3341.5,1.191]
[1737024055320,0.59868,3341.2,3341.1,4.28338286]
[1737024056127,0.59868,3341.2,3341.1,1.07558286]
[1737024056423,0.59872,3341.0,3340.9,1.191]
[1737024056621,3.80652,3341.0,3340.9,1.78974]
[1737024057124,3.80652,3341.0,3340.9,1.191]
[1737024057426,3.80652,3341.0,3340.9,1.78974]
[1737024057926,3.80652,3341.0,3340.9,1.191]
[1737024060227,3.2078,3341.0,3340.6,0.4538]
[1737024060429,0.59877,3340.7,3340.6,1.05259]
[1737024063526,0.9508,3340.9,3340.6,0.4538]
[1737024063727,0.59877,3340.8,3340.7,0.59876]
[1737024063926,0.9508,3340.9,3340.5,1.191]
[1737024064128,0.9508,3340.9,3340.5,1.0568]
[1737024064129,0.59879,3340.6,3340.5,1.0568]
[1737024066129,0.9508,3340.9,3340.3,2.38336662]
[1737024066326,0.59886,3340.2,3340.1,3.2078]
[1737024067434,0.59892,3339.9,3339.8,1.04813]
[1737024067831,0.59892,3339.9,3339.8,0.4492]
[1737024068036,0.9385,3340.4,3339.8,0.4492]
[1737024068340,0.59889,3340.1,3340.0,0.59889]
[1737024069227,0.59892,3339.9,3339.7,2.98230662]